fUSD/lending_fUSD_20240619
["ID","MTS","AMOUNT","RATE_DAILY","PERIOD"]
[329870257,1718776246626,-500.0,0.00013698,2]
[329870258,1718776246637,-2092.51,0.00013698,2]
[329870259,1718776246648,-500.0,0.00013698,2]
[329870260,1718776246657,-2314.45,0.00013698,2]
[329870261,1718776246667,-500.0,0.00013698,2]
[329870262,1718776246677,-500.0,0.00013698,2]
[329870263,1718776246688,-5723.72,0.00013698,2]
[329870264,1718776246698,-1425.37,0.00013698,2]
[329870265,1718776246708,-500.0,0.00013698,2]
[329870266,1718776246718,-500.0,0.00013698,2]
[329870267,1718776246728,-500.0,0.00013698,2]
[329870268,1718776246739,-21382.81,0.00013698,2]
[329870269,1718776246748,-572.58,0.00013698,2]
[329870270,1718776246758,-1131.25,0.00013698,2]
[329870271,1718776246768,-500.0,0.00013698,2]
[329870272,1718776246777,-2191.53,0.00013698,2]
[329870273,1718776246787,-500.0,0.00013698,2]
[329870274,1718776246797,-1061.32,0.00013698,2]
[329870275,1718776246807,-1462.06,0.00013698,2]
[329870276,1718776246816,-2272.75,0.00013698,2]
[329870277,1718776246826,-1655.53,0.00013698,2]
[329870278,1718776246837,-500.0,0.00013698,2]
[329870279,1718776246847,-12847.04,0.00013698,2]
[329870280,1718776246857,-6534.3,0.00013698,2]
[329870281,1718776246867,-1360.63,0.00013698,2]
[329870282,1718776246877,-3763.61,0.00013698,2]
[329870283,1718776246887,-500.0,0.00013698,2]
[329870284,1718776246898,-1515.9,0.00013698,2]
[329870285,1718776246908,-1424.29,0.00013698,2]
[329870286,1718776246918,-736.09,0.00013698,2]
[329870287,1718776246928,-1148.56,0.00013698,2]
[329870288,1718776246938,-3718.69,0.00013698,2]
[329870289,1718776246948,-500.0,0.00013698,2]
[329870290,1718776246958,-774.04,0.00013698,2]
[329870291,1718776246968,-747.71,0.00013698,2]
[329870292,1718776246978,-1258.05,0.00013698,2]
[329870293,1718776246988,-1946.1,0.00013698,2]
[329870294,1718776247000,-710.82,0.00013698,2]
[329870295,1718776247012,-967.03,0.00013698,2]
[329870296,1718776247022,-393.22711134,0.00013698,2]
[329870297,1718776247032,-500.0,0.00013698,2]
[329870298,1718776247043,-2767.29,0.00013698,2]
[329870299,1718776247053,-500.0,0.00013698,2]
[329870300,1718776247063,-996.16,0.00013698,2]
[329870301,1718776247072,-2577.67,0.00013698,2]
[329870302,1718776247085,-1431.26,0.00013698,2]
[329870303,1718776247095,-1414.2,0.00013698,2]
[329870304,1718776247105,-500.0,0.00013698,2]
[329870305,1718776247115,-2344.67,0.00013698,2]
[329870306,1718776247124,-1835.17,0.00013698,2]
[329870307,1718776247135,-500.0,0.00013698,2]
[329870308,1718776247145,-500.0,0.00013698,2]
[329870309,1718776247155,-8049.3,0.00013698,2]
[329870310,1718776247164,-500.0,0.00013698,2]
[329870311,1718776247174,-1906.59,0.00013698,2]
[329870312,1718776247183,-500.0,0.00013698,2]
[329870313,1718776247193,-500.0,0.00013698,2]
[329870314,1718776247203,-7616.18,0.00013698,2]
[329870315,1718776247213,-3204.94,0.00013698,2]
[329870316,1718776247223,-793.12,0.00013698,2]
[329870317,1718776247234,-1494.05,0.00013698,2]
[329870318,1718776247244,-500.0,0.00013698,2]
[329870319,1718776247254,-982.1,0.00013698,2]
[329870320,1718776247264,-896.68,0.00013698,2]
[329870321,1718776247274,-1512.26,0.00013698,2]
[329870322,1718776247284,-1793.76,0.00013698,2]
[329870323,1718776247294,-1123.8,0.00013698,2]
[329870324,1718776247303,-193.28939216,0.00013698,2]
[329870325,1718776247319,-306.71060784,0.00013698,2]
[329870326,1718776247329,-648.28824019,0.00013698,2]
[329870327,1718776247458,-287.35175981,0.00013698,2]
[329870328,1718776247467,-5035.66,0.00013698,2]
[329870329,1718776247477,-4995.24429848,0.00013698,2]
[329870330,1718776247519,-936.19570152,0.00013698,2]
[329870331,1718776247530,-2406.07,0.00013698,2]
[329870332,1718776247539,-506.71,0.00013698,2]
[329870333,1718776247549,-2643.47,0.00013698,2]
[329870334,1718776247558,-2860.72,0.00013698,2]
[329870335,1718776247567,-500.0,0.00013698,2]
[329870336,1718776247576,-617.09449385,0.00013698,2]
[329870337,1718776247586,-1420.7,0.00013698,2]
[329870338,1718776247595,-717.91,0.00013698,2]
[329870339,1718776247604,-500.0,0.00013698,2]
[329870340,1718776247613,-500.0,0.00013698,2]
[329870341,1718776247624,-1479.41,0.00013698,2]
[329870342,1718776247633,-500.0,0.00013698,2]
[329870343,1718776247643,-500.0,0.00013698,2]
[329870344,1718776247654,-500.0,0.00013698,2]
[329870345,1718776247663,-761.72,0.00013698,2]
[329870346,1718776247673,-1640.72,0.00013698,2]
[329870347,1718776247682,-778.63,0.00013698,2]
[329870348,1718776247692,-1183.91,0.00013698,2]
[329870349,1718776247701,-1233.99,0.00013698,2]
[329870350,1718776247711,-500.0,0.00013698,2]
[329870351,1718776247720,-3901.39,0.00013698,2]
[329870352,1718776247729,-500.0,0.00013698,2]
[329870353,1718776247739,-994.84,0.00013698,2]
[329870354,1718776247747,-500.0,0.00013698,2]
[329870355,1718776247757,-552.52,0.00013698,2]
[329870356,1718776247766,-500.0,0.00013698,2]
[329870357,1718776247775,-3646.93,0.00013698,2]
[329870358,1718776247785,-500.0,0.00013698,2]
[329870359,1718776247794,-500.0,0.00013698,2]
[329870360,1718776247803,-359.36246104,0.00013698,2]
[329870361,1718776247813,-2007.43,0.00013698,2]
[329870362,1718776247822,-719.55,0.00013698,2]
[329870363,1718776247831,-7270.52,0.00013698,2]
[329870364,1718776247841,-1210.86,0.00013698,2]
[329870365,1718776247850,-1290.57,0.00013698,2]
[329870366,1718776247859,-500.0,0.00013698,2]
[329870367,1718776247869,-503.33751983,0.00013698,2]
[329870368,1718776247878,-248.59978491,0.00013698,2]
[329870369,1718776247887,-2254.67,0.00013698,2]
[329870370,1718776247898,-4637.95,0.00013698,2]
[329870371,1718776247907,-500.0,0.00013698,2]
[329870372,1718776247916,-506.01364825,0.00013698,2]
[329870373,1718776247926,-8637.47,0.00013698,2]
[329870374,1718776247935,-3281.02,0.00013698,2]
[329870375,1718776247944,-2240.92,0.00013698,2]
[329870376,1718776247953,-500.0,0.00013698,2]
[329870377,1718776247962,-1399.23,0.00013698,2]
[329870378,1718776247971,-2083.1,0.00013698,2]
[329870379,1718776247982,-3321.94213277,0.00013698,2]
[329870380,1718776247999,-1435.90191552,0.00013698,2]
[329870381,1718776249185,-4015.75595171,0.00013698,2]
[329870382,1718776249195,-500.0,0.00013698,2]
[329870383,1718776249205,-1052.08,0.00013698,2]
[329870384,1718776249214,-500.0,0.00013698,2]
[329870385,1718776249225,-1577.51,0.00013698,2]
[329870386,1718776249234,-153.57792003,0.00013698,2]
[329870387,1718776249247,-1163.50207997,0.00013698,2]
[329870388,1718776249258,-6.30921551,0.00013698,2]
[329870389,1718776249270,-1060.69354888,0.00013698,2]
[329870390,1718776249476,-690.0,0.00013698,2]
[329870391,1718776249490,-777.87029025,0.00013698,2]
[329870392,1718776249502,-3631.25694536,0.00013698,2]
[329870393,1718776249512,-2204.21,0.00013698,2]
[329870394,1718776249521,-500.0,0.00013698,2]
[329870395,1718776249530,-500.0,0.00013698,2]
[329870396,1718776249539,-571.64,0.00013698,2]
[329870397,1718776249548,-2010.29,0.00013698,2]
[329870398,1718776249558,-502.0167449,0.00013698,2]
[329870399,1718776249567,-4106.52,0.00013698,2]
[329870400,1718776249576,-653.98,0.00013698,2]
[329870401,1718776249585,-500.0,0.00013698,2]
[329870402,1718776249595,-5013.71,0.00013698,2]
[329870403,1718776249605,-500.0,0.00013698,2]
[329870404,1718776249614,-8172.83,0.00013698,2]
[329870405,1718776249623,-1560.6,0.00013698,2]
[329870406,1718776249632,-1328.27,0.00013698,2]
[329870407,1718776249641,-843.06,0.00013698,2]
[329870408,1718776249653,-500.0,0.00013698,2]
[329870409,1718776249662,-2449.18,0.00013698,2]
[329870410,1718776249671,-1395.53,0.00013698,2]
[329870411,1718776249681,-3694.28,0.00013698,2]
[329870412,1718776249690,-637.5,0.00013698,2]
[329870413,1718776249699,-500.0,0.00013698,2]
[329870414,1718776249708,-500.0,0.00013698,2]
[329870415,1718776249718,-500.0,0.00013698,2]
[329870416,1718776249727,-11614.36,0.00013698,2]
[329870417,1718776249736,-500.0,0.00013698,2]
[329870418,1718776249746,-3307.94,0.00013698,2]
[329870419,1718776249755,-890.81,0.00013698,2]
[329870420,1718776249764,-500.0,0.00013698,2]
[329870421,1718776249774,-1664.58,0.00013698,2]
[329870422,1718776249783,-3590.98,0.00013698,2]
[329870423,1718776249792,-500.0,0.00013698,2]
[329870424,1718776249802,-500.0,0.00013698,2]
[329870425,1718776249811,-503.63617103,0.00013698,2]
[329870426,1718776249820,-1339.74,0.00013698,2]
[329870427,1718776249830,-687.01,0.00013698,2]
[329870428,1718776249839,-500.0,0.00013698,2]
[329870429,1718776249849,-500.0,0.00013698,2]
[329870430,1718776249858,-4479.94,0.00013698,2]
[329870431,1718776249867,-4174.06,0.00013698,2]
[329870432,1718776249876,-2137.58,0.00013698,2]
[329870433,1718776249887,-500.0,0.00013698,2]
[329870434,1718776249896,-1209.76,0.00013698,2]
[329870435,1718776249906,-3016.62,0.00013698,2]
[329870436,1718776249915,-3927.65,0.00013698,2]
[329870437,1718776249924,-517.61,0.00013698,2]
[329870438,1718776249934,-500.0,0.00013698,2]
[329870439,1718776249943,-627.97,0.00013698,2]
[329870440,1718776249953,-1893.25,0.00013698,2]
[329870441,1718776249962,-784.37,0.00013698,2]
[329870442,1718776249972,-901.82,0.00013698,2]
[329870443,1718776249982,-8034.08,0.00013698,2]
[329870444,1718776249996,-12046.39,0.00013698,2]
[329870445,1718776250005,-585.16826624,0.00013698,2]
[329870446,1718776250015,-1882.29,0.00013698,2]
[329870447,1718776250024,-500.0,0.00013698,2]
[329870448,1718776250034,-2315.03,0.00013698,2]
[329870450,1718776250044,-521.25687578,0.00013698,2]
[329870451,1718776250053,-3394.13,0.00013698,2]
[329870452,1718776250063,-500.0,0.00013698,2]
[329870453,1718776250073,-1742.01,0.00013698,2]
[329870454,1718776250083,-5336.28,0.00013698,2]
[329870455,1718776250092,-350.07575031,0.00013698,2]
[329870456,1718776250101,-2919.14,0.00013698,2]
[329870457,1718776250110,-3613.99,0.00013698,2]
[329870458,1718776250120,-673.58,0.00013698,2]
[329870459,1718776250129,-6300.19,0.00013698,2]
[329870460,1718776250138,-499.99731444,0.00013698,2]
[329870461,1718776250149,-1374.16,0.00013698,2]
[329870462,1718776250158,-1401.5,0.00013698,2]
[329870463,1718776250167,-500.0,0.00013698,2]
[329870464,1718776250176,-2946.57,0.00013698,2]
[329870465,1718776250185,-1168.65,0.00013698,2]
[329870466,1718776250195,-624.95,0.00013698,2]
[329870467,1718776250204,-500.0,0.00013698,2]
[329870468,1718776250214,-3408.9,0.00013698,2]
[329870469,1718776250224,-3390.67,0.00013698,2]
[329870470,1718776250233,-3917.17,0.00013698,2]
[329870471,1718776250242,-500.0,0.00013698,2]
[329870472,1718776250252,-2585.11,0.00013698,2]
[329870473,1718776250262,-500.0,0.00013698,2]
[329870474,1718776250272,-500.0,0.00013698,2]
[329870475,1718776250282,-5246.92,0.00013698,2]
[329870476,1718776250292,-500.0,0.00013698,2]
[329870477,1718776250301,-500.0,0.00013698,2]
[329870478,1718776250311,-1258.39,0.00013698,2]
[329870479,1718776250320,-709.76,0.00013698,2]
[329870480,1718776250329,-937.17,0.00013698,2]
[329870481,1718776250339,-2176.03,0.00013698,2]
[329870482,1718776250349,-500.0,0.00013698,2]
[329870483,1718776250358,-745.66,0.00013698,2]
[329870484,1718776250368,-721.98,0.00013698,2]
[329870485,1718776250380,-500.0,0.00013698,2]
[329870486,1718776250390,-3432.09,0.00013698,2]
[329870487,1718776250402,-500.0,0.00013698,2]
[329870488,1718776250412,-1135.98,0.00013698,2]
[329870489,1718776250423,-5973.82,0.00013698,2]
[329870490,1718776250432,-360.69779446,0.00013698,2]
[329870491,1718776250443,-1293.31,0.00013698,2]
[329870492,1718776250454,-6514.29,0.00013698,2]
[329870493,1718776250464,-2831.32,0.00013698,2]
[329870494,1718776250474,-575.46,0.00013698,2]
[329870495,1718776250483,-500.0,0.00013698,2]
[329870496,1718776250493,-1524.63,0.00013698,2]
[329870497,1718776250502,-13082.21,0.00013698,2]
[329870498,1718776250512,-579.16,0.00013698,2]
[329870499,1718776250521,-500.0,0.00013698,2]
[329870500,1718776250531,-500.0,0.00013698,2]
[329870501,1718776250540,-500.0,0.00013698,2]
[329870502,1718776250551,-2284.61,0.00013698,2]
[329870503,1718776250560,-300.60699469,0.00013698,2]
[329870504,1718776250569,-1076.3,0.00013698,2]
[329870505,1718776250578,-1837.38,0.00013698,2]
[329870506,1718776250589,-662.26,0.00013698,2]
[329870507,1718776250598,-2156.59,0.00013698,2]
[329870508,1718776250609,-7623.81,0.00013698,2]
[329870509,1718776250619,-2906.56,0.00013698,2]
[329870510,1718776250629,-7592.17,0.00013698,2]
[329870511,1718776250639,-4259.02,0.00013698,2]
[329870512,1718776250649,-2901.05,0.00013698,2]
[329870513,1718776250659,-916.64,0.00013698,2]
[329870514,1718776250668,-2841.95,0.00013698,2]
[329870515,1718776250677,-1289.18,0.00013698,2]
[329870516,1718776250687,-500.0,0.00013698,2]
[329870517,1718776250696,-500.0,0.00013698,2]
[329870518,1718776250705,-3736.72,0.00013698,2]
[329870519,1718776250714,-500.0,0.00013698,2]
[329870520,1718776250723,-500.0,0.00013698,2]
[329870521,1718776250732,-507.31,0.00013698,2]
[329870522,1718776250742,-1522.85,0.00013698,2]
[329870523,1718776250751,-3625.07,0.00013698,2]
[329870524,1718776250761,-4159.14,0.00013698,2]
[329870525,1718776250772,-3108.03,0.00013698,2]
[329870526,1718776250782,-500.0,0.00013698,2]
[329870527,1718776250794,-1900.0,0.00013698,2]
[329870528,1718776250805,-500.0,0.00013698,2]
[329870529,1718776250815,-14159.29,0.00013698,2]
[329870530,1718776250826,-1699.04,0.00013698,2]
[329870531,1718776250836,-960.72,0.00013698,2]
[329870532,1718776250846,-500.0,0.00013698,2]
[329870533,1718776250856,-1637.96,0.00013698,2]
[329870534,1718776250868,-500.0,0.00013698,2]
[329870535,1718776250877,-500.0,0.00013698,2]
[329870536,1718776250887,-5108.97,0.00013698,2]
[329870537,1718776250897,-4694.36,0.00013698,2]
[329870538,1718776250906,-644.83,0.00013698,2]
[329870539,1718776250916,-1332.55,0.00013698,2]
[329870540,1718776250925,-500.0,0.00013698,2]
[329870541,1718776250935,-3516.93,0.00013698,2]
[329870542,1718776250944,-500.0,0.00013698,2]
[329870543,1718776250953,-1436.9,0.00013698,2]
[329870544,1718776250963,-7191.25,0.00013698,2]
[329870545,1718776250972,-691.65,0.00013699,2]
[329870546,1718776250982,-1611.25,0.00013699,2]
[329870547,1718776250999,-200.0,0.00013699,2]
[329870548,1718776251008,-724.42,0.00013699,2]
[329870549,1718776251017,-206.92162495,0.00013761,2]
[329870550,1718776251027,-154.76518,0.00013872,2]
[329870551,1718776251036,-179803.34421492,0.00013872,2]
[329870552,1718776251092,-279.31295098,0.00013872,2]
[329870553,1718776251103,-218.3093341,0.00013872,2]
[329870554,1718776251116,-263.0606659,0.00013872,2]
[329870555,1718776251127,-1455.2596341,0.00013872,2]
[329870556,1718776251137,-1097.91988447,0.00013872,2]
[329870557,1718776251149,-525.3958,0.00013872,2]
[329870558,1718776251751,-29538.51700192,0.00013872,2]
[329870559,1718776251827,-206.31709052,0.00013598,2]
[329870560,1718776251836,-6467.36541361,0.00013872,2]
[329870561,1718776251846,-1000.0,0.00013872,2]
[329870562,1718776251856,-500.0,0.00013897,2]
[329870563,1718776251866,-500.0,0.00013897,2]
[329870564,1718776251876,-500.0,0.00013897,2]
[329870565,1718776251885,-500.0,0.00013897,2]
[329870566,1718776251896,-500.0,0.00013897,2]
[329870567,1718776251906,-500.0,0.00013897,2]
[329870568,1718776251915,-1350.704942,0.00013898,2]
[329870569,1718776251927,-1350.704942,0.00013898,2]
[329870570,1718776251937,-3394.876721,0.00013898,2]
[329870571,1718776251948,-3394.876721,0.00013898,2]
[329870572,1718776251959,-7089.32161411,0.00013898,2]
[329870573,1718776251968,-7089.32161409,0.00013898,2]
[329870574,1718776251978,-7089.32161409,0.00013898,2]
[329870575,1718776251989,-7089.32161409,0.00013898,2]
[329870576,1718776252002,-7089.32161409,0.00013898,2]
[329870577,1718776252011,-500.0,0.00013899,2]
[329870578,1718776252021,-392.13300509,0.00013899,2]
[329870579,1718776252031,-250000.0,0.000139,2]
[329870580,1718776252041,-10000.0,0.000139,2]
[329870581,1718776252050,-759.45552639,0.000139,2]
[329870582,1718776252060,-155.271776,0.000139,2]
[329870583,1718776252071,-1000.0,0.00013916,2]
[329870584,1718776252082,-359.0,0.00013949,2]
[329870585,1718776252092,-1271.0,0.00013949,2]
[329870586,1718776252102,-1830.0,0.00013949,2]
[329870587,1718776252111,-165.0,0.00013949,2]
[329870588,1718776252121,-812.0,0.00013949,2]
[329870589,1718776252131,-1653.0,0.00013949,2]
[329870590,1718776252141,-617.0,0.00013949,2]
[329870591,1718776252151,-442.0,0.00013949,2]
[329870592,1718776252160,-150.0,0.00013949,2]
[329870593,1718776252171,-447.0,0.00013949,2]
[329870594,1718776252181,-1303.0,0.00013949,2]
[329870595,1718776252192,-2410.0,0.00013949,2]
[329870596,1718776252203,-547.0,0.00013949,2]
[329870597,1718776252213,-1982.0,0.00013949,2]
[329870598,1718776252223,-3198.0,0.00013949,2]
[329870599,1718776252232,-5164.0,0.00013949,2]
[329870600,1718776252242,-5795.0,0.00013949,2]
[329870601,1718776252252,-10533.19803465,0.00013949,2]
[329870606,1718776286069,701.1076,9.897e-05,2]
[329870668,1718776741692,150.0,9.477e-05,2]
[329870669,1718776741718,13.19,9.477e-05,2]
[329870679,1718776929592,723.6,9.658e-05,2]
[329870680,1718777176449,150.0,7.244e-05,2]
[329870681,1718777176481,150.0,7.244e-05,2]
[329870682,1718777176508,150.0,7.244e-05,2]
[329870683,1718777176531,150.0,7.244e-05,2]
[329870684,1718777176553,150.0,7.244e-05,2]
[329870685,1718777176576,150.0,7.244e-05,2]
[329870686,1718777176599,150.0,7.244e-05,2]
[329870687,1718777176621,150.0,7.244e-05,2]
[329870688,1718777176644,196.3849318,7.244e-05,2]
[329870689,1718777176667,519.22364886,7.244e-05,2]
[329870690,1718777214163,150.0,7.244e-05,2]
[329870691,1718777214186,238.53374272,7.244e-05,2]
[329870692,1718777214210,9129.02751037,7.244e-05,2]
[329870696,1718777277622,300.0,7.244e-05,2]
[329870697,1718777284549,150.0,7.244e-05,2]
[329870698,1718777284570,140.20612561,7.244e-05,2]
[329870701,1718777302326,290.20612561,7.244e-05,2]
[329870702,1718777318197,150.0,7.244e-05,2]
[329870703,1718777318219,49.23900135,7.244e-05,2]
[329870704,1718777334303,172.76,8.741e-05,2]
[329870708,1718777432019,-454.016994,0.00010495,2]
[329870710,1718777432029,-4297.56143634,0.00010496,2]
[329870712,1718777432038,-217.84444268,0.00010551,2]
[329870714,1718777432047,-159.90595749,0.00010651,2]
[329870717,1718777432057,-250.0,0.0001084,2]
[329870720,1718777432067,-1323.62599236,0.00010856,2]
[329870722,1718777432075,-491.27,0.00010907,2]
[329870725,1718777432085,-461.1,0.00010959,2]
[329870727,1718777432094,-1661.15,0.00010963,2]
[329870729,1718777432104,-217.84444267,0.0001101,2]
[329870731,1718777432114,-300.0,0.00011012,2]
[329870733,1718777432125,-705.61,0.00011013,2]
[329870734,1718777432134,-150.0,0.00011028,2]
[329870735,1718777432143,-2781.27,0.00011029,2]
[329870736,1718777432154,-284.51,0.00011038,2]
[329870737,1718777432170,-4578.5,0.00011038,2]
[329870738,1718777432180,-1608.49,0.00011048,2]
[329870739,1718777432190,-685.34,0.00011049,2]
[329870740,1718777432200,-499.99,0.00011049,2]
[329870741,1718777432210,-605.6,0.00011049,2]
[329870742,1718777432219,-237.72,0.00011049,2]
[329870743,1718777432228,-250.0,0.00011063,2]
[329870744,1718777432241,-3274.02,0.00011083,2]
[329870745,1718777432262,-200.0,0.0001111,2]
[329870746,1718777432272,-22546.4,0.00011409,2]
[329870747,1718777432283,-226.82,0.00011463,2]
[329870748,1718777432292,-1000.0,0.00011494,2]
[329870749,1718777432302,-1000.0,0.00011526,2]
[329870750,1718777432312,-1001.74,0.00011554,2]
[329870751,1718777432322,-1000.0,0.00011557,2]
[329870752,1718777432332,-178.2,0.00011586,2]
[329870753,1718777432342,-1000.0,0.00011589,2]
[329870754,1718777432352,-1000.0,0.00011621,2]
[329870755,1718777432361,-1000.0,0.00011652,2]
[329870756,1718777432371,-438.28,0.00011681,2]
[329870757,1718777432381,-1000.0,0.00011684,2]
[329870758,1718777432391,-297.91,0.00011712,2]
[329870759,1718777432402,-1000.0,0.00011715,2]
[329870760,1718777432418,-1000.0,0.00011747,2]
[329870761,1718777432427,-1000.0,0.00011778,2]
[329870762,1718777432437,-1000.0,0.0001181,2]
[329870763,1718777432447,-1000.0,0.00011841,2]
[329870764,1718777432457,-1000.0,0.00011873,2]
[329870765,1718777432466,-1000.0,0.00011904,2]
[329870766,1718777432475,-723.6,0.00011921,2]
[329870767,1718777432487,-1000.0,0.00011936,2]
[329870768,1718777432497,-1000.0,0.00011967,2]
[329870769,1718777432507,-1000.0,0.00011999,2]
[329870770,1718777432517,-1000.0,0.00012031,2]
[329870771,1718777432526,-1000.0,0.00012062,2]
[329870772,1718777432535,-1000.0,0.00012094,2]
[329870773,1718777432545,-420.0,0.00012101,2]
[329870774,1718777432555,-210.0,0.0001213,2]
[329870775,1718777432564,-1626.12,0.00012425,2]
[329870776,1718777432574,-1000.0,0.00012564,2]
[329870777,1718777432583,-172.13,0.00012627,2]
[329870778,1718777432592,-10465.18174886,0.00012688,2]
[329870779,1718777432602,-10994.0339,0.00012698,2]
[329870780,1718777432611,-779.6857,0.00012698,2]
[329870781,1718777432621,-9283.1842,0.00012698,2]
[329870782,1718777432630,-176.77024669,0.00012698,2]
[329870783,1718777432640,-161.63425311,0.00012698,2]
[329870784,1718777432650,-328.25685622,0.00012698,2]
[329870785,1718777432661,-905.4644,0.00012699,2]
[329870786,1718777432670,-186.70042845,0.00012788,2]
[329870787,1718777432680,-1278.63374008,0.00012796,2]
[329870788,1718777432690,-372.46475835,0.00012796,2]
[329870789,1718777432699,-15894.25122042,0.00012796,2]
[329870790,1718777432709,-346.56780173,0.00012797,2]
[329870791,1718777432718,-434756.39136857,0.00012798,2]
[329870792,1718777432799,-147892.45920332,0.00012798,2]
[329870793,1718777432810,-858.16390953,0.00012798,2]
[329870794,1718777432822,-54003.27766262,0.00012798,2]
[329870795,1718777432834,-54809.96336554,0.00012798,2]
[329870796,1718777432846,-57.74281007,0.00012798,2]
[329870797,1718777432855,-192.67903676,0.00012798,2]
[329870798,1718777432870,-2569.57815317,0.00012799,2]
[329870799,1718777432882,-15321.1287449,0.00012799,2]
[329870803,1718777439275,-250.91322634,0.00012799,2]
[329870804,1718777439451,-3361.19212537,0.00012799,2]
[329870805,1718777439464,-662.01112107,0.00012799,2]
[329870806,1718777439476,-3021.65992862,0.00012799,2]
[329870807,1718777439491,-1989.47898931,0.00012799,2]
[329870808,1718777439504,-32762.05394481,0.00012799,2]
[329870809,1718777439517,-1008.61726376,0.00012799,2]
[329870810,1718777439710,-15804.73164907,0.00012799,2]
[329870812,1718777439722,-4272.26535015,0.00012799,2]
[329870814,1718777439734,-2516.30847202,0.00012799,2]
[329870827,1718777441331,-352.75909744,0.00012799,2]
[329870828,1718777441342,-95899.05343397,0.00012799,2]
[329870829,1718777441352,-12979.6,0.00012893,2]
[329870830,1718777441361,-587.0,0.00013297,2]
[329870831,1718777441378,-10000.0,0.00013312,2]
[329870832,1718777441387,-293.0,0.00013343,2]
[329870833,1718777441397,-328.25685621,0.00013432,2]
[329870834,1718777441409,-12742.12384478,0.000135,2]
[329870835,1718777441419,-1321.48,0.00013514,2]
[329870836,1718777441428,-5164.0,0.00013514,2]
[329870837,1718777441438,-290.0,0.00013514,2]
[329870838,1718777441448,-1655.148,0.00013514,2]
[329870839,1718777441457,-38133.0,0.00013514,2]
[329870840,1718777441466,-1067.0,0.00013514,2]
[329870841,1718777441476,-187.33012332,0.00013598,2]
[329870842,1718777441486,-15773.59632956,0.00013696,2]
[329870843,1718777441496,-204.71327852,0.00013698,2]
[329870844,1718777441505,-500.0,0.00013698,2]
[329870845,1718777441515,-500.0,0.00013698,2]
[329870846,1718777441525,-500.0,0.00013698,2]
[329870847,1718777441534,-500.0,0.00013698,2]
[329870848,1718777441543,-500.0,0.00013698,2]
[329870849,1718777441553,-500.0,0.00013698,2]
[329870850,1718777441562,-516.72388771,0.00013698,2]
[329870851,1718777441572,-500.0,0.00013698,2]
[329870852,1718777441582,-715.84,0.00013698,2]
[329870853,1718777441591,-1574.32,0.00013698,2]
[329870854,1718777441601,-1035.07,0.00013698,2]
[329870855,1718777441610,-500.0,0.00013698,2]
[329870856,1718777441619,-500.0,0.00013698,2]
[329870857,1718777441628,-500.0,0.00013698,2]
[329870858,1718777441638,-500.0,0.00013698,2]
[329870859,1718777441647,-803.16,0.00013698,2]
[329870860,1718777441657,-500.0,0.00013698,2]
[329870861,1718777441666,-779.92,0.00013698,2]
[329870862,1718777441676,-500.0,0.00013698,2]
[329870863,1718777441686,-500.0,0.00013698,2]
[329870864,1718777441696,-842.47,0.00013698,2]
[329870865,1718777441705,-500.0,0.00013698,2]
[329870866,1718777441715,-1533.83,0.00013698,2]
[329870867,1718777441725,-500.0,0.00013698,2]
[329870868,1718777441735,-701.7,0.00013698,2]
[329870869,1718777441744,-607.25,0.00013698,2]
[329870870,1718777441754,-500.0,0.00013698,2]